fUST/lending_fUST_20260413
["ID","MTS","AMOUNT","RATE_DAILY","PERIOD"]
[420351560,1776009712085,-1151.0,0.000119,2]
[420351564,1776009938368,-224.74083523,0.00011781,2]
[420351576,1776010232122,-219.21,9e-05,2]
[420351577,1776010232142,-546.0,9e-05,2]
[420351578,1776010232153,-5000.0,0.00011546,2]
[420351579,1776010232185,-215.16978744,0.00011812,2]
[420351580,1776010232199,-500.0,0.0001202,2]
[420351581,1776010232219,-500.0,0.0001202,2]
[420351582,1776010232229,-305.44140143,0.0001202,2]
[420351583,1776010232245,-75.42513974,0.0001202,2]
[420351584,1776010232266,-976.0131484,0.00012116,2]
[420351589,1776010238450,-320.79179295,0.00012116,2]
[420351591,1776010238464,-4865.22731142,0.00012259,2]
[420351593,1776010238479,-2156.54586716,0.00012259,2]
[420351595,1776010238506,-300.0,0.00012259,2]
[420351597,1776010238516,-300.0,0.00012259,2]
[420351598,1776010238559,-300.0,0.00012259,2]
[420351599,1776010238569,-300.0,0.00012259,2]
[420351600,1776010238583,-300.0,0.00012259,2]
[420351601,1776010238603,-300.0,0.00012259,2]
[420351602,1776010238612,-300.0,0.00012259,2]
[420351603,1776010238622,-300.0,0.00012259,2]
[420351604,1776010238639,-300.0,0.00012259,2]
[420351605,1776010238650,-300.0,0.00012259,2]
[420351606,1776010238661,-300.0,0.00012259,2]
[420351607,1776010238672,-300.0,0.00012259,2]
[420351608,1776010238682,-300.0,0.00012259,2]
[420351609,1776010238693,-300.0,0.00012259,2]
[420351610,1776010238702,-300.0,0.00012259,2]
[420351611,1776010238713,-851.50580386,0.00012264,2]
[420351612,1776010238722,-600.0,0.00012503,2]
[420351613,1776010238734,-3642.15528404,0.00012716,2]
[420351614,1776010238745,-3833.9644066,0.00012816,2]
[420351615,1776010238755,-863.52,0.00013698,2]
[420351616,1776010238768,-1000.0,0.00013699,2]
[420351617,1776010238787,-720.0,0.00013753,2]
[420351618,1776010238796,-184.0,0.00014949,2]
[420351619,1776010238806,-516.0,0.00015111,2]
[420351620,1776010238819,-1035.0,0.00015111,2]
[420351621,1776010238829,-864.0,0.00015129,2]
[420351622,1776010238839,-160.0,0.00015285,2]
[420351623,1776010238848,-1407.0,0.00015363,2]
[420351624,1776010238859,-644.0,0.00015363,2]
[420351625,1776010238869,-2207.0,0.00015363,2]
[420351626,1776010238879,-5680.38790046,0.0001565,2]
[420351627,1776010238892,-482.01209953,0.0001565,2]
[420351628,1776010238903,-820.0,0.0001567,2]
[420351629,1776010238915,-4080.05541619,0.00015705,2]
[420351630,1776010238959,-1022.48872304,0.00015705,2]
[420351631,1776010238973,-863.52,0.00015749,2]
[420351632,1776010238982,-500.0,0.00015749,2]
[420351633,1776010238995,-500.0,0.00015749,2]
[420351634,1776010239010,-276.2091543,0.00015749,2]
[420351635,1776010239019,-12744.3006562,0.0001575,2]
[420351636,1776010239028,-17900.0,0.00016,2]
[420351637,1776010239039,-258.828,0.000162,2]
[420351638,1776010239055,-8807.63401001,0.00016206,2]
[420351639,1776010239066,-5000.0,0.00016206,2]
[420351640,1776010239075,-820.0,0.00016278,2]
[420351641,1776010239087,-500.0,0.00016278,2]
[420351642,1776010239107,-1012743.94665043,0.00016286,2]
[420351643,1776010239117,-162.380719,0.00016386,2]
[420351644,1776010239131,-537.6845,0.00016386,2]
[420351645,1776010239155,-2150.738,0.00016386,2]
[420351646,1776010239169,-4439.0,0.00016435,2]
[420351647,1776010239200,-272.79169103,0.00016435,2]
[420351648,1776010239209,-500.0,0.00016435,2]
[420351649,1776010239228,-500.0,0.00016435,2]
[420351650,1776010239249,-863.52,0.00016437,2]
[420351651,1776010239261,-863.52,0.00016437,2]
[420351652,1776010239292,-500.0,0.00016438,2]
[420351653,1776010239302,-559.88,0.00016438,2]
[420351654,1776010239315,-500.0,0.00016438,2]
[420351655,1776010239335,-500.0,0.00016438,2]
[420351656,1776010239346,-500.0,0.00016438,2]
[420351657,1776010239358,-500.0,0.00016438,2]
[420351658,1776010239369,-500.0,0.00016438,2]
[420351659,1776010239378,-500.0,0.00016438,2]
[420351660,1776010239401,-500.0,0.00016438,2]
[420351661,1776010239411,-500.0,0.00016438,2]
[420351662,1776010239426,-500.0,0.00016438,2]
[420351663,1776010239437,-500.0,0.00016438,2]
[420351664,1776010239449,-500.0,0.00016438,2]
[420351665,1776010239462,-500.0,0.00016438,2]
[420351666,1776010239473,-500.0,0.00016438,2]
[420351667,1776010239486,-500.0,0.00016438,2]
[420351668,1776010239497,-500.0,0.00016438,2]
[420351669,1776010239513,-214.60073306,0.00016438,2]
[420351670,1776010239523,-500.0,0.00016438,2]
[420351671,1776010239541,-500.0,0.00016438,2]
[420351672,1776010239557,-500.0,0.00016438,2]
[420351673,1776010239578,-500.0,0.00016438,2]
[420351674,1776010239591,-500.0,0.00016438,2]
[420351675,1776010239620,-500.0,0.00016438,2]
[420351676,1776010239631,-1439.1708,0.00016438,2]
[420351677,1776010239640,-500.0,0.00016438,2]
[420351678,1776010239686,-169.0806894,0.00016438,2]
[420351679,1776010239713,-500.0,0.00016438,2]
[420351680,1776010239722,-500.0,0.00016438,2]
[420351681,1776010239741,-500.0,0.00016438,2]
[420351682,1776010239759,-500.0,0.00016438,2]
[420351683,1776010239770,-500.0,0.00016438,2]
[420351684,1776010239804,-500.0,0.00016438,2]
[420351685,1776010239813,-500.0,0.00016438,2]
[420351686,1776010239823,-500.0,0.00016438,2]
[420351687,1776010239839,-500.0,0.00016438,2]
[420351688,1776010239857,-500.0,0.00016438,2]
[420351689,1776010239867,-500.0,0.00016438,2]
[420351690,1776010239879,-500.0,0.00016438,2]
[420351691,1776010239902,-500.0,0.00016438,2]
[420351692,1776010239935,-500.0,0.00016438,2]
[420351693,1776010239945,-500.0,0.00016438,2]
[420351694,1776010239978,-500.0,0.00016438,2]
[420351695,1776010239988,-500.0,0.00016438,2]
[420351696,1776010240023,-500.0,0.00016438,2]
[420351697,1776010240034,-500.0,0.00016438,2]
[420351698,1776010240076,-500.0,0.00016438,2]
[420351700,1776010240091,-500.0,0.00016438,2]
[420351701,1776010240106,-500.0,0.00016438,2]
[420351703,1776010240131,-500.0,0.00016438,2]
[420351706,1776010240142,-500.0,0.00016438,2]
[420351707,1776010240155,-500.0,0.00016438,2]
[420351708,1776010240174,-500.0,0.00016438,2]
[420351709,1776010240185,-500.0,0.00016438,2]
[420351710,1776010240195,-500.0,0.00016438,2]
[420351711,1776010240227,-500.0,0.00016438,2]
[420351712,1776010240237,-500.0,0.00016438,2]
[420351713,1776010240252,-500.0,0.00016438,2]
[420351714,1776010240276,-500.0,0.00016438,2]
[420351715,1776010240297,-1285.2493,0.00016438,2]
[420351716,1776010240308,-500.0,0.00016438,2]
[420351717,1776010240331,-500.0,0.00016438,2]
[420351718,1776010240342,-500.0,0.00016438,2]
[420351719,1776010240352,-500.0,0.00016438,2]
[420351720,1776010240383,-406.03677497,0.00016438,2]
[420351721,1776010240394,-500.0,0.00016438,2]
[420351722,1776010240404,-500.0,0.00016438,2]
[420351723,1776010240414,-614.79,0.00016438,2]
[420351724,1776010240430,-271.8195899,0.00016438,2]
[420351725,1776010240440,-500.0,0.00016438,2]
[420351726,1776010240451,-624.08,0.00016438,2]
[420351727,1776010240470,-500.0,0.00016438,2]
[420351728,1776010240479,-500.0,0.00016438,2]
[420351729,1776010240490,-1000.0,0.00016438,2]
[420351730,1776010240511,-500.0,0.00016438,2]
[420351731,1776010240521,-500.0,0.00016438,2]
[420351732,1776010240531,-500.0,0.00016552,2]
[420351733,1776010240542,-725.15,0.00016602,3]
[420351734,1776010240552,-160.77697936,0.00016611,2]
[420351735,1776010240564,-492.37,0.00016612,2]
[420351736,1776010240574,-492.37,0.00016612,2]
[420351737,1776010240593,-492.37,0.00016612,2]
[420351738,1776010240603,-492.37,0.00016612,2]
[420351739,1776010240613,-492.37,0.00016612,2]
[420351740,1776010240625,-492.37,0.00016612,2]
[420351741,1776010240637,-492.37,0.00016612,2]
[420351742,1776010240647,-492.37,0.00016612,2]
[420351743,1776010240658,-492.37,0.00016612,2]
[420351744,1776010240669,-492.37,0.00016612,2]
[420351745,1776010240683,-492.37,0.00016612,2]
[420351746,1776010240692,-492.37,0.00016612,2]
[420351747,1776010240706,-492.37,0.00016612,2]
[420351748,1776010240720,-492.37,0.00016612,2]
[420351749,1776010240732,-492.37,0.00016612,2]
[420351750,1776010240747,-492.37,0.00016612,2]
[420351751,1776010240757,-492.37,0.00016612,2]
[420351752,1776010240783,-492.37,0.00016612,2]
[420351753,1776010240795,-492.37,0.00016612,2]
[420351754,1776010240811,-492.37,0.00016612,2]
[420351755,1776010240826,-492.37,0.00016612,2]
[420351756,1776010240839,-492.37,0.00016612,2]
[420351757,1776010240853,-784.24,0.00016612,2]
[420351758,1776010240878,-1000.0,0.00016642,2]
[420351759,1776010240898,-4439.0,0.00016664,2]
[420351760,1776010240914,-4439.0,0.00016684,2]
[420351761,1776010240924,-863.52,0.00016711,2]
[420351762,1776010240941,-500.0,0.00016712,2]
[420351763,1776010240960,-500.0,0.00016712,2]
[420351764,1776010240970,-621.68,0.00016712,2]
[420351765,1776010240980,-500.0,0.00016712,2]
[420351766,1776010240995,-500.0,0.00016712,2]
[420351767,1776010241005,-500.0,0.00016712,2]
[420351768,1776010241019,-500.0,0.00016712,2]
[420351769,1776010241029,-500.0,0.00016712,2]
[420351770,1776010241040,-500.0,0.00016712,2]
[420351771,1776010241054,-500.0,0.00016712,2]
[420351772,1776010241067,-500.0,0.00016712,2]
[420351773,1776010241077,-500.0,0.00016712,2]
[420351774,1776010241094,-500.0,0.00016712,2]
[420351775,1776010241109,-500.0,0.00016712,2]
[420351776,1776010241119,-500.0,0.00016712,2]
[420351777,1776010241141,-500.0,0.00016712,2]
[420351778,1776010241155,-500.0,0.00016712,2]
[420351779,1776010241165,-500.0,0.00016712,2]
[420351780,1776010241182,-500.0,0.00016712,2]
[420351781,1776010241196,-500.0,0.00016712,2]
[420351782,1776010241208,-515.60872216,0.00016712,2]
[420351783,1776010241218,-500.0,0.00016712,2]
[420351784,1776010241234,-500.0,0.00016712,2]
[420351785,1776010241247,-500.0,0.00016712,2]
[420351786,1776010241257,-500.0,0.00016712,2]
[420351787,1776010241268,-500.0,0.00016712,2]
[420351788,1776010241277,-500.0,0.00016712,2]
[420351789,1776010241291,-500.0,0.00016712,2]
[420351790,1776010241300,-500.0,0.00016712,2]
[420351791,1776010241310,-500.0,0.00016712,2]
[420351792,1776010241320,-500.0,0.00016712,2]
[420351793,1776010241334,-500.0,0.00016712,2]
[420351794,1776010241349,-500.0,0.00016712,2]
[420351795,1776010241360,-500.0,0.00016712,2]
[420351796,1776010241370,-500.0,0.00016712,2]
[420351797,1776010241381,-500.0,0.00016712,2]
[420351798,1776010241397,-500.0,0.00016712,2]
[420351799,1776010241406,-500.0,0.00016712,2]
[420351800,1776010241416,-500.0,0.00016712,2]
[420351801,1776010241427,-500.0,0.00016712,2]
[420351802,1776010241439,-500.0,0.00016712,2]
[420351803,1776010241448,-500.0,0.00016712,2]
[420351804,1776010241458,-500.0,0.00016712,2]
[420351805,1776010241467,-500.0,0.00016712,2]
[420351806,1776010241479,-500.0,0.00016712,2]
[420351807,1776010241487,-500.0,0.00016712,2]
[420351808,1776010241497,-500.0,0.00016712,2]
[420351809,1776010241508,-500.0,0.00016712,2]
[420351810,1776010241526,-500.0,0.00016712,2]
[420351811,1776010241537,-546.24,0.00016712,2]
[420351812,1776010241548,-500.0,0.00016712,2]
[420351814,1776010241558,-500.0,0.00016712,2]
[420351815,1776010241580,-1285.2493,0.00016712,2]
[420351816,1776010241589,-500.0,0.00016712,2]
[420351817,1776010241600,-500.0,0.00016712,2]
[420351818,1776010241628,-500.0,0.00016712,2]
[420351819,1776010241638,-500.0,0.00016712,2]
[420351820,1776010241651,-500.0,0.00016712,2]
[420351821,1776010241668,-500.0,0.00016712,2]
[420351822,1776010241679,-614.79,0.00016712,2]
[420351823,1776010241691,-500.0,0.00016712,2]
[420351824,1776010241704,-500.0,0.00016712,2]
[420351825,1776010241718,-500.0,0.00016712,2]
[420351826,1776010241732,-1000.0,0.00016712,2]
[420351827,1776010241743,-820.0,0.00016764,2]
[420351828,1776010241759,-500.0,0.00016826,2]
[420351829,1776010241770,-2230.315306,0.00016934,2]
[420351830,1776010241781,-863.52,0.00016935,2]
[420351831,1776010241800,-3112.9993066,0.00016936,2]
[420351832,1776010241812,-4439.0,0.00016949,2]
[420351836,1776010241982,-863.52,0.00016953,2]
[420351837,1776010241995,-500.0,0.00016985,2]
[420351838,1776010242024,-863.52,0.00016985,2]
[420351839,1776010242033,-248.16,0.00016986,2]
[420351840,1776010242042,-569.36,0.00016986,2]
[420351841,1776010242067,-500.0,0.00016986,2]
[420351842,1776010242090,-500.0,0.00016986,2]
[420351843,1776010242106,-500.0,0.00016986,2]
[420351844,1776010242137,-500.0,0.00016986,2]
[420351845,1776010242172,-248.16,0.00016986,2]
[420351846,1776010242204,-500.0,0.00016986,2]
[420351847,1776010242216,-500.0,0.00016986,2]
[420351848,1776010242257,-500.0,0.00016986,2]
[420351849,1776010242270,-500.0,0.00016986,2]
[420351850,1776010242294,-500.0,0.00016986,2]
[420351851,1776010242311,-500.0,0.00016986,2]
[420351852,1776010242349,-500.0,0.00016986,2]
[420351853,1776010242362,-500.0,0.00016986,2]
[420351854,1776010242396,-500.0,0.00016986,2]
[420351855,1776010242424,-500.0,0.00016986,2]
[420351856,1776010242442,-365.71295399,0.00016986,2]
[420351857,1776010242486,-500.0,0.00016986,2]
[420351858,1776010242512,-500.0,0.00016986,2]
[420351859,1776010242533,-500.0,0.00016986,2]
[420351860,1776010242558,-500.0,0.00016986,2]
[420351862,1776010242569,-500.0,0.00016986,2]
[420351863,1776010242578,-500.0,0.00016986,2]
[420351864,1776010242594,-500.0,0.00016986,2]
[420351866,1776010242611,-500.0,0.00016986,2]
[420351867,1776010242621,-500.0,0.00016986,2]
[420351868,1776010242634,-500.0,0.00016986,2]
[420351869,1776010242650,-500.0,0.00016986,2]
[420351870,1776010242660,-500.0,0.00016986,2]
[420351871,1776010242669,-500.0,0.00016986,2]
[420351873,1776010242684,-500.0,0.00016986,2]
[420351875,1776010242693,-500.0,0.00016986,2]
[420351876,1776010242707,-500.0,0.00016986,2]
[420351877,1776010242718,-500.0,0.00016986,2]
[420351878,1776010242728,-500.0,0.00016986,2]
[420351879,1776010242738,-500.0,0.00016986,2]
[420351880,1776010242749,-500.0,0.00016986,2]
[420351881,1776010242767,-500.0,0.00016986,2]
[420351882,1776010242777,-500.0,0.00016986,2]
[420351884,1776010242787,-500.0,0.00016986,2]
[420351886,1776010242805,-182.87692826,0.00016986,2]
[420351888,1776010242815,-500.0,0.00016986,2]
[420351889,1776010242825,-500.0,0.00016986,2]
[420351890,1776010242835,-500.0,0.00016986,2]
[420351891,1776010242850,-1285.2493,0.00016986,2]
[420351892,1776010242860,-500.0,0.00016986,2]
[420351893,1776010242874,-500.0,0.00016986,2]
[420351894,1776010242886,-500.0,0.00016986,2]
[420351895,1776010242896,-500.0,0.00016986,2]
[420351896,1776010242912,-500.0,0.00016986,2]
[420351897,1776010242926,-500.0,0.00016986,2]
[420351898,1776010242936,-614.79,0.00016986,2]
[420351899,1776010242947,-500.0,0.00016986,2]
[420351900,1776010242969,-500.0,0.00016986,2]
[420351901,1776010242979,-500.0,0.00016986,2]
[420351902,1776010242990,-761.53702131,0.00016986,2]
[420351903,1776010243012,-500.0,0.0001705,2]
[420351904,1776010243023,-863.52,0.00017059,2]
[420351905,1776010243036,-1528.0,0.0001706,2]
[420351906,1776010243079,-315.34,0.000171,2]
[420351907,1776010243092,-500.0,0.000171,2]
[420351908,1776010243108,-715.0,0.00017148,2]
[420351909,1776010243133,-221.0,0.00017148,2]
[420351910,1776010243147,-530.0,0.00017148,2]
[420351911,1776010243166,-498.11562031,0.00017183,2]
[420351912,1776010243182,-252.40213426,0.000172,2]
[420351913,1776010243195,-4439.0,0.00017207,2]
[420351914,1776010243212,-863.52,0.00017259,2]
[420351915,1776010243229,-500.0,0.0001726,2]
[420351916,1776010243250,-500.0,0.0001726,2]
[420351917,1776010243264,-500.0,0.0001726,2]
[420351918,1776010243277,-500.0,0.0001726,2]
[420351919,1776010243307,-500.0,0.0001726,2]
[420351920,1776010243320,-500.0,0.0001726,2]
[420351921,1776010243333,-500.0,0.0001726,2]
[420351922,1776010243343,-500.0,0.0001726,2]
[420351923,1776010243362,-500.0,0.0001726,2]
[420351924,1776010243378,-500.0,0.0001726,2]
[420351925,1776010243390,-500.0,0.0001726,2]
[420351926,1776010243407,-500.0,0.0001726,2]
[420351927,1776010243424,-500.0,0.0001726,2]
[420351928,1776010243435,-500.0,0.0001726,2]
[420351929,1776010243466,-500.0,0.0001726,2]
[420351930,1776010243479,-322.95178561,0.0001726,2]
[420351931,1776010243490,-500.0,0.0001726,2]
[420351932,1776010243507,-500.0,0.0001726,2]
[420351933,1776010243517,-500.0,0.0001726,2]
[420351934,1776010243530,-500.0,0.0001726,2]
[420351935,1776010243542,-500.0,0.0001726,2]
[420351936,1776010243554,-500.0,0.0001726,2]
[420351937,1776010243563,-500.0,0.0001726,2]
[420351939,1776010243573,-500.0,0.0001726,2]
[420351940,1776010243583,-500.0,0.0001726,2]
[420351942,1776010243593,-500.0,0.0001726,2]
[420351943,1776010243605,-500.0,0.0001726,2]
[420351944,1776010243614,-500.0,0.0001726,2]
[420351945,1776010243625,-500.0,0.0001726,2]
[420351946,1776010243635,-500.0,0.0001726,2]
[420351947,1776010243648,-500.0,0.0001726,2]
[420351948,1776010243658,-500.0,0.0001726,2]
[420351949,1776010243670,-500.0,0.0001726,2]
[420351950,1776010243684,-182.52,0.0001726,2]
[420351951,1776010243694,-500.0,0.0001726,2]
[420351952,1776010243705,-328.86,0.0001726,2]
[420351953,1776010243715,-1285.2493,0.0001726,2]
[420351954,1776010243730,-500.0,0.0001726,2]
[420351955,1776010243740,-500.0,0.0001726,2]
[420351956,1776010243752,-500.0,0.0001726,2]
[420351957,1776010243761,-500.0,0.0001726,2]
[420351958,1776010243791,-500.0,0.0001726,2]
[420351959,1776010243808,-500.0,0.0001726,2]
[420351960,1776010243827,-614.79,0.0001726,2]
[420351961,1776010243838,-500.0,0.0001726,2]
[420351962,1776010243853,-500.0,0.0001726,2]
[420351963,1776010243886,-500.0,0.0001726,2]
[420351964,1776010243900,-4439.0,0.00017261,2]
[420351965,1776010243922,-1528.0,0.00017334,2]
[420351966,1776010243933,-4439.0,0.00017356,2]
[420351967,1776010243943,-500.0,0.00017374,2]
[420351968,1776010243981,-500.0,0.00017438,2]
[420351969,1776010244000,-500.00052977,0.00017438,2]
[420351970,1776010244021,-253.50501592,0.00017444,2]
[420351971,1776010244036,-285.698222,0.00017452,7]
[420351972,1776010244050,-221.63256,0.00017452,7]
[420351973,1776010244066,-168.0,0.00017464,2]
[420351974,1776010244078,-500.0,0.00017473,2]
[420351975,1776010244090,-500.0,0.00017478,2]
[420351976,1776010244100,-2312.83697232,0.00017482,2]
[420351977,1776010244125,-863.52,0.00017503,2]
[420351978,1776010244135,-863.52,0.00017503,2]
[420351979,1776010244146,-38000.0,0.00017504,3]
[420351980,1776010244159,-160.0,0.00017504,3]
[420351981,1776010244176,-863.52,0.00017512,2]
[420351982,1776010244185,-863.52,0.00017512,2]
[420351983,1776010244198,-4439.0,0.00017513,2]
[420351984,1776010244208,-38000.0,0.00017513,3]
[420351985,1776010244218,-863.52,0.00017521,2]
[420351986,1776010244228,-38000.0,0.00017522,3]
[420351987,1776010244244,-863.52,0.0001753,2]
[420351988,1776010244254,-863.52,0.0001753,2]
[420351989,1776010244263,-27834.99186574,0.0001753,3]
[420351990,1776010244478,-1144.71617457,0.0001753,3]
[420351991,1776010245086,-441.0,0.00014949,2]
[420351992,1776010245096,-991.0,0.00016612,2]
[420351993,1776010245109,-199.0,0.00017148,2]
[420351994,1776010245123,-1244.26254868,0.0001753,3]
[420351995,1776010245142,-965.92859394,0.0001753,3]
[420351996,1776010245164,-6810.10081707,0.0001753,3]
[420351997,1776010245174,-155.0,0.00017533,2]
[420351998,1776010245184,-863.52,0.00017533,2]
[420351999,1776010245196,-863.52,0.00017533,2]
[420352000,1776010245208,-863.52,0.00017533,2]
[420352001,1776010245218,-863.52,0.00017533,2]
[420352002,1776010245228,-863.52,0.00017533,2]
[420352003,1776010245241,-863.52,0.00017533,2]
[420352004,1776010245258,-863.67,0.00017533,2]
[420352005,1776010245267,-276.90445446,0.00017534,2]
[420352006,1776010245278,-402.04,0.00017534,2]
[420352007,1776010245287,-500.0,0.00017534,2]
[420352008,1776010245300,-500.0,0.00017534,2]
[420352009,1776010245309,-500.0,0.00017534,2]
[420352010,1776010245319,-500.0,0.00017534,2]
[420352011,1776010245328,-500.0,0.00017534,2]
[420352012,1776010245342,-500.0,0.00017534,2]
[420352013,1776010245351,-500.0,0.00017534,2]
[420352014,1776010245361,-500.0,0.00017534,2]
[420352015,1776010245376,-500.0,0.00017534,2]
[420352016,1776010245386,-350.36,0.00017534,2]
[420352017,1776010245395,-500.0,0.00017534,2]
[420352018,1776010245406,-412.65902113,0.00017534,2]
[420352019,1776010245601,-911.0,0.00016986,2]
[420352020,1776010245614,-87.34097887,0.00017534,2]
[420352021,1776010245630,-500.0,0.00017534,2]
[420352022,1776010245663,-500.0,0.00017534,2]
[420352023,1776010245674,-500.0,0.00017534,2]
[420352024,1776010245690,-500.0,0.00017534,2]
[420352025,1776010245706,-234.5590967,0.00017534,2]
[420352026,1776010245724,-265.4409033,0.00017534,2]
[420352027,1776010245741,-500.0,0.00017534,2]
[420352028,1776010245750,-500.0,0.00017534,2]
[420352029,1776010245794,-500.0,0.00017534,2]
[420352031,1776010245813,-236.65015881,0.00017534,2]
[420352033,1776010245827,-500.0,0.00017534,2]
[420352034,1776010245844,-500.0,0.00017534,2]
[420352035,1776010245867,-379.87310407,0.00017534,2]
[420352036,1776010245876,-500.0,0.00017534,2]
[420352037,1776010246045,-500.0,0.00017534,2]
[420352038,1776010246062,-500.0,0.00017534,2]
[420352039,1776010246094,-190.36822729,0.00017534,2]
[420352040,1776010246142,-309.63177271,0.00017534,2]
[420352041,1776010246171,-193.6,0.00017534,2]
[420352042,1776010246194,-500.0,0.00017534,2]
[420352043,1776010246208,-500.0,0.00017534,2]
[420352044,1776010246223,-500.0,0.00017534,2]
[420352045,1776010246233,-114.10020061,0.00017534,2]
[420352053,1776010246708,-352.407924,0.00017444,7]
[420352054,1776010246718,-142.73979939,0.00017534,2]
[420352055,1776010246727,-380.76,0.00017534,2]
[420352056,1776010246736,-500.0,0.00017534,2]
[420352057,1776010246750,-407.32,0.00017534,2]
[420352058,1776010246758,-12.43050856,0.00017534,2]
[420352061,1776010477109,-176.0,0.00017126,30]
[420352110,1776011432479,-809.56186714,9.606e-05,2]
[420352111,1776011432492,-291.85012365,9.606e-05,2]
[420352112,1776011432621,-3898.58800921,9.606e-05,2]
[420352113,1776011432631,-555.0,9.606e-05,2]
[420352114,1776011432647,-500.0,0.0001,2]
[420352115,1776011432662,-159.81351932,0.0001,2]
[420352117,1776011432672,-300.0,0.00010926,13]
[420352119,1776011432691,-1000.0,0.00013699,2]
[420352120,1776011432702,-487.0,0.0001565,2]
[420352121,1776011432716,-487.0,0.0001565,2]
[420352122,1776011432735,-487.0,0.0001565,2]
[420352123,1776011432746,-36.93016027,0.0001565,2]
[420352195,1776011438810,-112.64969459,0.00015494,2]
[420352198,1776011438827,-473.57376399,0.00015494,2]
[420352269,1776011443675,-819.51562325,0.00015494,2]
[420352376,1776012092936,233.05,0.0001,30]
[420352377,1776012092970,203.578,0.0001,30]
[420352387,1776012632614,-5000.0,0.00012265,2]
[420352388,1776012632627,-593.0,0.00012265,2]
[420352389,1776012632645,-5000.0,0.00012389,2]
[420352390,1776012632663,-165.39871215,0.00012873,2]
[420352391,1776012632677,-660.93325376,0.00012873,2]
[420352392,1776012632703,-152.0,0.0001339,7]
[420352393,1776012632721,-119.58002032,0.0001339,7]
[420352462,1776012638979,-32.41997968,0.0001339,7]
[420352463,1776012638991,-152.0,0.0001339,7]
[420352464,1776012639001,-152.0,0.00013394,30]
[420352465,1776012639012,-1000.0,0.00013699,2]
[420352466,1776012639024,-152.0,0.00013734,7]
[420352467,1776012639037,-152.0,0.00013734,7]
[420352468,1776012639046,-152.0,0.00013734,7]
[420352469,1776012639059,-152.0,0.00013738,30]
[420352470,1776012639075,-500.0,0.00015,2]
[420352471,1776012639085,-160.0,0.00015205,2]
[420352472,1776012639097,-820.0,0.00015386,2]
[420352473,1776012639110,-159.81351932,0.00015675,14]
[420352474,1776012639124,-160.0,0.00015702,2]
[420352475,1776012639134,-1393.787,0.00015729,2]
[420352476,1776012639147,-640.361,0.00015729,2]
[420352477,1776012639161,-2207.0,0.00015729,2]
[420352478,1776012639177,-441.0,0.00015729,2]
[420352479,1776012639192,-160.24549659,0.000158,5]
[420352480,1776012639208,-423.32676246,0.00015824,2]
[420352481,1776012639236,-1693.30704984,0.00015824,2]
[420352482,1776012639249,-3806.13092128,0.00015824,2]
[420352483,1776012639279,-583.21690806,0.00015824,2]
[420352484,1776012639294,-329.01372496,0.00015824,2]
[420352485,1776012639550,-1289.70641936,0.00015824,2]